fUSD/lending_fUSD_20260701
["ID","MTS","AMOUNT","RATE_DAILY","PERIOD"]
[426823500,1782909042000,-153.0,0.00024339,2]
[426823494,1782909042000,-151.0,0.00024324,2]
[426823503,1782909042000,-2337.0,0.0002448,3]
[426823505,1782909042000,-2573.276331,0.0002451,2]
[426823504,1782909042000,-2411.0,0.00024504,3]
[426823507,1782909042000,-160.0,0.00024585,3]
[426823517,1782909042000,-653.59814097,0.00024675,2]
[426823516,1782909042000,-347.64318098,0.00024675,2]
[426823506,1782909042000,-1341.03200711,0.00024566,2]
[426823496,1782909042000,-153.0,0.00024339,2]
[426823515,1782909042000,-350.35552404,0.00024675,2]
[426823508,1782909042000,-181.42,0.00024658,2]
[426823528,1782909042000,-455.89888445,0.00024675,2]
[426823523,1782909042000,-548.08695648,0.00024675,2]
[426823521,1782909042000,-365.21187637,0.00024675,2]
[426823518,1782909042000,-324.74711025,0.00024675,2]
[426823530,1782909042000,-398.89520059,0.00024675,2]
[426823514,1782909042000,-200.0,0.00024675,2]
[426823509,1782909042000,-1000.0,0.00024658,2]
[426823513,1782909042000,-7556.80590467,0.00024667,2]
[426823527,1782909042000,-610.06078352,0.00024675,2]
[426823512,1782909042000,-172.84,0.00024658,2]
[426823510,1782909042000,-622.69,0.00024658,2]
[426823511,1782909042000,-173.11,0.00024658,2]
[426823588,1782909043000,-163.19072036,0.00025388,2]
[426823598,1782909043000,-216.8690555,0.00025508,2]
[426823607,1782909043000,-595.05210049,0.00025508,2]
[426823592,1782909043000,-7761.05258272,0.00025432,3]
[426823593,1782909043000,-176.1091974,0.00025435,2]
[426823594,1782909043000,-560.3513898,0.00025438,2]
[426823602,1782909043000,-521.46477147,0.00025508,2]
[426823595,1782909043000,-3617.0,0.00025484,3]
[426823599,1782909043000,-222.86913611,0.00025508,2]
[426823600,1782909043000,-525.53328606,0.00025508,2]
[426823597,1782909043000,-262.19220039,0.00025508,2]
[426823596,1782909043000,-218.84563062,0.00025508,2]
[426823605,1782909043000,-231.70191532,0.00025508,2]
[426823604,1782909043000,-487.12066538,0.00025508,2]
[426823613,1782909043000,-221.85579058,0.00025508,2]
[426823614,1782909043000,-915.09117527,0.00025508,2]
[426823603,1782909043000,-980.39721146,0.00025508,2]
[426823606,1782909043000,-241.0989831,0.00025508,2]
[426823612,1782909043000,-204.71160719,0.00025508,2]
[426823610,1782909043000,-822.13043472,0.00025508,2]
[426823611,1782909043000,-535.0494676,0.00025508,2]
[426823608,1782909043000,-547.81781456,0.00025508,2]
[426823609,1782909043000,-207.68744181,0.00025508,2]
[426823585,1782909043000,-7556.80590467,0.00025333,2]
[426823601,1782909043000,-207.14945268,0.00025508,2]
[426823587,1782909043000,-1341.03200711,0.00025388,2]
[426823574,1782909043000,-232.89282664,0.00025026,2]
[426823584,1782909043000,-160.0,0.00025253,3]
[426823561,1782909043000,-11639.65,0.00024961,7]
[426823562,1782909043000,-850.66,0.00024961,7]
[426823564,1782909043000,-183.83100172,0.00024966,2]
[426823566,1782909043000,-541.68137342,0.00024983,7]
[426823563,1782909043000,-1067.329,0.00024961,8]
[426823569,1782909043000,-224.0,0.00025,2]
[426823565,1782909043000,-155.09124618,0.00024967,2]
[426823567,1782909043000,-7556.80590467,0.00025,2]
[426823568,1782909043000,-277.0,0.00025,2]
[426823570,1782909043000,-2000.0,0.00025,7]
[426823573,1782909043000,-3408.74826574,0.00025026,2]
[426823583,1782909043000,-172.17556438,0.00025245,2]
[426823575,1782909043000,-254.4198138,0.00025026,2]
[426823571,1782909043000,-160.0,0.00025,3]
[426823572,1782909043000,-1436.65172837,0.00025014,2]
[426823577,1782909043000,-10529.66727455,0.00025122,2]
[426823578,1782909043000,-560.3513898,0.00025135,2]
[426823580,1782909043000,-511.8,0.000252,7]
[426823590,1782909043000,-310.37325831,0.000254,7]
[426823579,1782909043000,-210.78202178,0.00025194,2]
[426823581,1782909043000,-191.19865258,0.00025231,2]
[426823589,1782909043000,-225.76892904,0.00025397,2]
[426823586,1782909043000,-488.0,0.00025342,5]
[426823582,1782909043000,-560.3513898,0.00025232,2]
[426823576,1782909043000,-1341.03200711,0.00025114,2]
[426823615,1782909043000,-683.84832668,0.00025508,2]
[426823591,1782909043000,-200.0,0.00025415,2]
[426823622,1782909043000,-208.29132022,0.00025508,2]
[426823642,1782909043000,-333.48039768,0.00025525,2]
[426823647,1782909043000,-583.23938561,0.00025525,2]
[426823650,1782909043000,-283.53701404,0.00025525,2]
[426823643,1782909043000,-462.77880028,0.00025525,2]
[426823659,1782909043000,-1072.71,0.00025579,7]
[426823651,1782909043000,-363.17125607,0.00025525,2]
[426823661,1782909043000,-1206.74,0.00025585,7]
[426823652,1782909043000,-436.53751148,0.00025525,2]
[426823660,1782909043000,-1370.21,0.00025585,7]
[426823662,1782909043000,-1341.03200711,0.00025662,2]
[426823653,1782909043000,-170.49849039,0.00025525,2]
[426823654,1782909043000,-395.75045763,0.00025525,2]
[426823656,1782909043000,-516.89533572,0.00025525,2]
[426823658,1782909043000,-206.64058683,0.00025526,2]
[426823657,1782909043000,-493.66407266,0.00025525,2]
[426823666,1782909043000,-151.0,0.00025747,3]
[426823665,1782909043000,-153.0,0.00025747,3]
[426823663,1782909043000,-7556.80590467,0.00025667,2]
[426823668,1782909043000,-155.09124616,0.00025757,2]
[426823667,1782909043000,-560.3513898,0.00025756,2]
[426823664,1782909043000,-152.0,0.00025704,9]
[426823669,1782909043000,-152.0,0.00025769,3]
[426823671,1782909043000,-320.17428722,0.0002579,2]
[426823670,1782909043000,-151.0,0.00025769,3]
[426823616,1782909043000,-185.61728128,0.00025508,2]
[426823644,1782909043000,-458.26789848,0.00025525,2]
[426823648,1782909043000,-430.90623074,0.00025525,2]
[426823655,1782909043000,-457.23746853,0.00025525,2]
[426823646,1782909043000,-211.79031102,0.00025525,2]
[426823645,1782909043000,-204.76953854,0.00025525,2]
[426823619,1782909043000,-554.87411002,0.00025508,2]
[426823623,1782909043000,-238.05815496,0.00025508,2]
[426823617,1782909043000,-161.26408509,0.00025508,2]
[426823621,1782909043000,-267.79038049,0.00025508,2]
[426823627,1782909043000,-489.41959924,0.00025508,2]
[426823618,1782909043000,-204.67163512,0.00025508,2]
[426823624,1782909043000,-219.80772233,0.00025508,2]
[426823625,1782909043000,-468.04049579,0.00025508,2]
[426823626,1782909043000,-598.34280088,0.00025508,2]
[426823629,1782909043000,-469.1589713,0.00025508,2]
[426823628,1782909043000,-218.41282662,0.00025508,2]
[426823637,1782909043000,-420.97049379,0.00025514,2]
[426823620,1782909043000,-293.52280167,0.00025508,2]
[426823641,1782909043000,-238.23840175,0.00025525,2]
[426823631,1782909043000,-476.04523455,0.00025508,2]
[426823649,1782909043000,-369.80549642,0.00025525,2]
[426823640,1782909043000,-400.38213015,0.00025516,2]
[426823639,1782909043000,-339.68335645,0.00025516,2]
[426823634,1782909043000,-331.38169771,0.00025514,2]
[426823638,1782909043000,-391.54300211,0.00025516,2]
[426823635,1782909043000,-426.71908186,0.00025514,2]
[426823636,1782909043000,-342.45399547,0.00025514,2]
[426823630,1782909043000,-235.7709842,0.00025508,2]
[426823633,1782909043000,-333.01785677,0.00025514,2]
[426823632,1782909043000,-335.69420701,0.00025514,2]
[426823711,1782909044000,-409.42321438,0.00026064,2]
[426823717,1782909044000,-739.83214669,0.00026064,2]
[426823714,1782909044000,-911.79776891,0.00026064,2]
[426823716,1782909044000,-409.34327024,0.00026064,2]
[426823712,1782909044000,-443.71158115,0.00026064,2]
[426823704,1782909044000,-649.49422051,0.00026064,2]
[426823708,1782909044000,-730.42375275,0.00026064,2]
[426823709,1782909044000,-1096.17391296,0.00026064,2]
[426823707,1782909044000,-793.40280065,0.00026064,2]
[426823706,1782909044000,-482.1979662,0.00026064,2]
[426823723,1782909044000,-797.79040118,0.00026064,2]
[426823710,1782909044000,-713.39929013,0.00026064,2]
[426823722,1782909044000,-624.05399438,0.00026064,2]
[426823730,1782909044000,-640.07862279,0.00026069,2]
[426823725,1782909044000,-436.82565325,0.00026064,2]
[426823720,1782909044000,-476.11630992,0.00026064,2]
[426823719,1782909044000,-535.58076097,0.00026064,2]
[426823715,1782909044000,-371.23456256,0.00026064,2]
[426823724,1782909044000,-652.55946566,0.00026064,2]
[426823721,1782909044000,-439.61544466,0.00026064,2]
[426823727,1782909044000,-634.72697939,0.00026064,2]
[426823737,1782909044000,-214.04621816,0.0002607,2]
[426823726,1782909044000,-625.54529506,0.00026064,2]
[426823729,1782909044000,-499.52678516,0.00026069,2]
[426823728,1782909044000,-503.54131052,0.00026069,2]
[426823705,1782909044000,-463.40383065,0.00026064,2]
[426823718,1782909044000,-587.04560334,0.00026064,2]
[426823702,1782909044000,-695.28636197,0.00026064,2]
[426823672,1782909044000,-784175.48551305,0.000258,2]
[426823713,1782909044000,-1220.12156703,0.00026064,2]
[426823731,1782909044000,-497.07254657,0.00026069,2]
[426823674,1782909044000,-4559.56962722,0.000258,2]
[426823673,1782909044000,-108655.83507189,0.000258,2]
[426823676,1782909044000,-1053.22955628,0.000258,2]
[426823675,1782909044000,-650500.53524874,0.000258,2]
[426823677,1782909044000,-208.03,0.00025815,2]
[426823678,1782909044000,-511.8,0.000259,7]
[426823679,1782909044000,-1712.0767611,0.0002591,2]
[426823682,1782909044000,-163.19072036,0.00025936,2]
[426823681,1782909044000,-1341.03200711,0.00025936,2]
[426823680,1782909044000,-1536.1353873,0.0002591,2]
[426823684,1782909044000,-1136.99788778,0.00026,2]
[426823703,1782909044000,-1307.19628194,0.00026064,2]
[426823685,1782909044000,-4619.25242202,0.00026,2]
[426823686,1782909044000,-221.03380664,0.00026,2]
[426823693,1782909044000,-224.0,0.00026,2]
[426823687,1782909044000,-90483.91709718,0.00026,2]
[426823691,1782909044000,-277.0,0.00026,2]
[426823690,1782909044000,-7556.80590467,0.00026,2]
[426823688,1782909044000,-129709.39201996,0.00026,2]
[426823696,1782909044000,-524.38440079,0.00026064,2]
[426823695,1782909044000,-560.3513898,0.00026058,2]
[426823699,1782909044000,-700.71104809,0.00026064,2]
[426823700,1782909044000,-445.73827223,0.00026064,2]
[426823698,1782909044000,-433.738111,0.00026064,2]
[426823701,1782909044000,-414.29890536,0.00026064,2]
[426823683,1782909044000,-613.68632601,0.0002599,2]
[426823733,1782909044000,-210.4852469,0.00026069,2]
[426823738,1782909044000,-317.25532407,0.0002607,2]
[426823732,1782909044000,-513.6809932,0.00026069,2]
[426823771,1782909044000,-509.52503467,0.00026071,2]
[426823763,1782909044000,-165.94267455,0.0002607,2]
[426823769,1782909044000,-350.67787861,0.0002607,2]
[426823773,1782909044000,-476.4768035,0.0002608,2]
[426823766,1782909044000,-171.81838776,0.0002607,2]
[426823772,1782909044000,-600.57319523,0.00026071,2]
[426823768,1782909044000,-233.35700752,0.0002607,2]
[426823775,1782909044000,-500.22059652,0.0002608,2]
[426823774,1782909044000,-471.54196841,0.0002608,2]
[426823777,1782909044000,-611.02386464,0.0002608,2]
[426823776,1782909044000,-617.03840038,0.0002608,2]
[426823779,1782909044000,-777.65251415,0.0002608,2]
[426823764,1782909044000,-161.49319466,0.0002607,2]
[426823784,1782909044000,-544.75688411,0.0002608,2]
[426823778,1782909044000,-423.58062204,0.0002608,2]
[426823783,1782909044000,-567.07402808,0.0002608,2]
[426823780,1782909044000,-409.53907709,0.0002608,2]
[426823782,1782909044000,-554.70824463,0.0002608,2]
[426823785,1782909044000,-654.80626722,0.0002608,2]
[426823734,1782909044000,-331.9250412,0.0002607,2]
[426823788,1782909044000,-593.62568645,0.00026081,2]
[426823787,1782909044000,-420.34905332,0.00026081,2]
[426823791,1782909044000,-650.20819741,0.00026081,2]
[426823790,1782909044000,-637.21017834,0.00026081,2]
[426823789,1782909044000,-609.64995804,0.00026081,2]
[426823792,1782909044000,-635.59688811,0.00026081,2]
[426823781,1782909044000,-646.3593461,0.0002608,2]
[426823765,1782909044000,-265.8947183,0.0002607,2]
[426823786,1782909044000,-340.99698078,0.0002608,2]
[426823770,1782909044000,-587.31450317,0.00026071,2]
[426823762,1782909044000,-169.88202936,0.0002607,2]
[426823735,1782909044000,-165.427374,0.0002607,2]
[426823736,1782909044000,-302.72774339,0.0002607,2]
[426823748,1782909044000,-168.9331364,0.0002607,2]
[426823741,1782909044000,-365.22292494,0.0002607,2]
[426823740,1782909044000,-169.30789619,0.0002607,2]
[426823742,1782909044000,-416.79151321,0.0002607,2]
[426823747,1782909044000,-401.00854429,0.0002607,2]
[426823743,1782909044000,-356.69719386,0.0002607,2]
[426823745,1782909044000,-324.20917551,0.0002607,2]
[426823744,1782909044000,-390.93011144,0.0002607,2]
[426823746,1782909044000,-412.04842883,0.0002607,2]
[426823750,1782909044000,-396.4856489,0.0002607,2]
[426823739,1782909044000,-421.62095953,0.0002607,2]
[426823761,1782909044000,-382.30083712,0.0002607,2]
[426823760,1782909044000,-306.93214607,0.0002607,2]
[426823755,1782909044000,-369.75887702,0.0002607,2]
[426823767,1782909044000,-301.76185416,0.0002607,2]
[426823756,1782909044000,-166.54028833,0.0002607,2]
[426823758,1782909044000,-414.03400714,0.0002607,2]
[426823757,1782909044000,-386.88308409,0.0002607,2]
[426823754,1782909044000,-312.44332042,0.0002607,2]
[426823753,1782909044000,-197.9482334,0.0002607,2]
[426823752,1782909044000,-223.04909276,0.0002607,2]
[426823751,1782909044000,-361.61074383,0.0002607,2]
[426823749,1782909044000,-161.74318187,0.0002607,2]
[426823759,1782909044000,-421.94735018,0.0002607,2]
[426823814,1782909045000,-1080.958635,0.00026301,2]
[426823815,1782909045000,-1080.958635,0.00026301,2]
[426823822,1782909045000,-1080.958635,0.00026301,2]
[426823817,1782909045000,-1080.958635,0.00026301,2]
[426823819,1782909045000,-1080.958635,0.00026301,2]
[426823821,1782909045000,-1080.958635,0.00026301,2]
[426823827,1782909045000,-1080.958635,0.00026301,2]
[426823830,1782909045000,-1080.958635,0.00026301,2]
[426823824,1782909045000,-1080.958635,0.00026301,2]
[426823826,1782909045000,-1080.958635,0.00026301,2]
[426823831,1782909045000,-1080.958635,0.00026301,2]
[426823823,1782909045000,-1080.958635,0.00026301,2]
[426823833,1782909045000,-1080.958629,0.00026301,2]
[426823829,1782909045000,-1080.958635,0.00026301,2]
[426823832,1782909045000,-1080.958635,0.00026301,2]
[426823828,1782909045000,-1080.958635,0.00026301,2]
[426823838,1782909045000,-258.3673402,0.00026397,2]
[426823839,1782909045000,-289.7738409,0.00026397,2]
[426823837,1782909045000,-560.3513898,0.00026363,2]
[426823812,1782909045000,-560.3513898,0.0002626,2]
[426823825,1782909045000,-1080.958635,0.00026301,2]
[426823818,1782909045000,-1080.958635,0.00026301,2]
[426823801,1782909045000,-166.07211996,0.00026119,2]
[426823813,1782909045000,-151.0,0.00026296,2]
[426823834,1782909045000,-1040.52,0.00026346,7]
[426823795,1782909045000,-157.45251489,0.00026081,2]
[426823793,1782909045000,-689.19378096,0.00026081,2]
[426823796,1782909045000,-413.28117366,0.00026081,2]
[426823794,1782909045000,-658.21876355,0.00026081,2]
[426823808,1782909045000,-305.30180166,0.00026119,2]
[426823798,1782909045000,-313.63477408,0.00026095,2]
[426823810,1782909045000,-200.0,0.00026156,2]
[426823809,1782909045000,-439.24580139,0.00026119,2]
[426823816,1782909045000,-1080.958635,0.00026301,2]
[426823797,1782909045000,-319.66711317,0.00026093,2]
[426823802,1782909045000,-160.41789385,0.00026119,2]
[426823800,1782909045000,-5528.0,0.000261,5]
[426823807,1782909045000,-390.38435859,0.00026119,2]
[426823805,1782909045000,-164.42099268,0.00026119,2]
[426823806,1782909045000,-174.24266354,0.00026119,2]
[426823804,1782909045000,-439.89417369,0.00026119,2]
[426823803,1782909045000,-216.05795891,0.00026119,2]
[426823811,1782909045000,-1341.03200721,0.0002621,2]
[426823820,1782909045000,-1080.958635,0.00026301,2]
[426823799,1782909045000,-381.76577315,0.00026099,2]
[426823836,1782909045000,-1170.54,0.00026353,7]
[426823876,1782909045000,-762.06244755,0.00026636,2]
[426823840,1782909045000,-280.69645426,0.00026397,2]
[426823862,1782909045000,-1139.74721114,0.00026619,2]
[426823864,1782909045000,-997.23800147,0.00026619,2]
[426823859,1782909045000,-1370.21739121,0.00026619,2]
[426823869,1782909045000,-771.29800047,0.00026636,2]
[426823871,1782909045000,-763.7798308,0.00026636,2]
[426823873,1782909045000,-972.06564269,0.00026636,2]
[426823900,1782909045000,-1248539.99453769,0.000268,2]
[426823887,1782909045000,-1436.65172837,0.000267,2]
[426823889,1782909045000,-628.68501017,0.000267,2]
[426823867,1782909045000,-793.40872424,0.00026619,2]
[426823891,1782909045000,-176.10334244,0.000267,2]
[426823894,1782909045000,-4823.0,0.00026709,10]
[426823893,1782909045000,-1980.98416377,0.000267,2]
[426823885,1782909045000,-400.0,0.000267,2]
[426823896,1782909045000,-3818.0,0.00026722,2]
[426823881,1782909045000,-822.77345444,0.00026636,2]
[426823897,1782909045000,-320.17428722,0.0002679,2]
[426823883,1782909045000,-500.0,0.00026684,2]
[426823898,1782909045000,-1311.82822868,0.000268,15]
[426823899,1782909045000,-2043601.38768562,0.000268,2]
[426823895,1782909045000,-152.0,0.00026717,10]
[426823865,1782909045000,-780.06749298,0.00026619,2]
[426823879,1782909045000,-861.49222619,0.00026636,2]
[426823863,1782909045000,-924.79018336,0.00026619,2]
[426823866,1782909045000,-815.69933207,0.00026619,2]
[426823841,1782909045000,-292.29287284,0.00026397,2]
[426823842,1782909045000,-308.12015042,0.00026397,2]
[426823845,1782909045000,-293.91027528,0.00026397,2]
[426823835,1782909045000,-1329.11,0.00026353,7]
[426823843,1782909045000,-286.4186927,0.00026397,2]
[426823846,1782909045000,-28082.88942198,0.000264,2]
[426823847,1782909045000,-10529.66727455,0.000264,2]
[426823857,1782909045000,-1633.99535243,0.00026619,2]
[426823849,1782909045000,-163.19072045,0.00026484,2]
[426823844,1782909045000,-225.76892904,0.00026397,2]
[426823854,1782909045000,-3422.50324977,0.00026618,14]
[426823848,1782909045000,-488.0,0.00026453,5]
[426823852,1782909045000,-280.0,0.00026521,2]
[426823853,1782909045000,-155.09124616,0.00026548,2]
[426823850,1782909045000,-255866.74975624,0.000265,2]
[426823851,1782909045000,-511.79,0.000265,7]
[426823855,1782909045000,-875.88881011,0.00026619,2]
[426823858,1782909045000,-913.02969093,0.00026619,2]
[426823861,1782909045000,-1525.15195879,0.00026619,2]
[426823856,1782909045000,-869.10795246,0.00026619,2]
[426823860,1782909045000,-891.74911266,0.00026619,2]
[426823901,1782909046000,-15629.88146003,0.000268,2]
[426823906,1782909046000,-584.4,0.00023843,2]
[426823905,1782909046000,-59.1935582,0.00023843,2]
[426823904,1782909046000,-288.2064418,0.00016438,2]
[426823907,1782909046000,-2909.27504316,0.00023843,2]
[426823902,1782909046000,-391.26663963,0.00023843,2]
[426823910,1782909046000,-295.95460604,0.000267,2]
[426823909,1782909046000,-11661.25757949,0.00025121,2]
[426823913,1782909046000,-253.2684386,0.000268,2]
[426823912,1782909046000,-270.15,0.000268,2]
[426823908,1782909046000,-7717.1223385,0.00023843,2]
[426823911,1782909046000,-913.67995498,0.000268,2]
[426823915,1782909127000,500.0,0.00028493,60]
[426823917,1782909156000,508.74114076,0.00028493,60]
[426823919,1782909170000,224.952755,0.00026581,120]
[426823920,1782909177000,500.0,0.00028493,60]
[426823922,1782909189000,161.38,0.00029232,30]
[426823923,1782909210000,155.93118,0.00027525,30]
[426823924,1782909212000,155.93118,0.00017525,30]
[426823925,1782909213000,155.93118,7.525e-05,30]
[426823926,1782909255000,165.88,0.00029232,30]
[426823927,1782909381000,184.66355844,0.00012819,2]
[426823932,1782909496000,1207654.18308521,0.00029,30]
[426823938,1782909561000,346335.53127471,0.0003,30]
[426823940,1782909616000,197.822,0.000268,120]
[426823941,1782909795000,468.24065807,0.00012764,2]
[426823945,1782909838000,896.02,0.00027397,90]
[426823946,1782909839000,784.02,0.00027397,90]
[426823947,1782909840000,560.01,0.00027397,90]
[426823949,1782909847000,-150.0,0.00013054,2]
[426823948,1782909847000,-287.96,0.00013005,2]
[426823950,1782909848000,250.0,0.00013029,2]
[426823951,1782909852000,757.31,0.00027397,120]
[426823952,1782909854000,662.65,0.00027397,120]
[426823953,1782909855000,473.32,0.00027397,30]
[426823954,1782909882000,4180.0,0.00024658,120]
[426823957,1782909890000,-284.49286731,0.00013133,2]
[426823958,1782909890000,-1218.66713269,0.00013159,2]
[426823956,1782909890000,-1158.88,0.00013103,2]
[426823955,1782909890000,-150.0,0.00013103,2]
[426823964,1782910057000,3401.33649643,0.0003,120]
[426823969,1782910141000,2000.0,0.00030135,30]
[426823971,1782910141000,2000.0,0.00028492,60]
[426823970,1782910141000,2000.0,0.00029999,120]
[426823979,1782910226000,497.02,0.00012892,2]
[426823992,1782910232000,-1060.54286731,0.00013159,2]
[426823987,1782910232000,-398.86,0.00013102,2]
[426823989,1782910232000,-159.58,0.00013103,2]
[426823988,1782910232000,-176.21,0.00013103,2]
[426823995,1782910232000,-342.11624509,0.00013214,2]
[426823984,1782910232000,-518.55,0.00013054,2]
[426823996,1782910232000,-500.0,0.00013238,2]
[426823994,1782910232000,-154.90375491,0.00013214,2]
[426823986,1782910232000,-118.31051047,0.00013079,2]
[426823990,1782910232000,-1097.1,0.00013111,2]
[426823997,1782910232000,-150.0,0.0001332,2]
[426823991,1782910232000,-284.49286731,0.00013138,2]
[426823985,1782910232000,-31.68948953,0.00013079,2]
[426823998,1782910232000,-166.15,0.00013392,2]
[426823993,1782910232000,-150.0,0.0001319,2]
[426824010,1782910232000,-535.21487575,0.00013469,2]
[426824009,1782910232000,-542.61816382,0.00013469,2]
[426824006,1782910232000,-150.0,0.00013454,2]
[426824008,1782910232000,-200.41718904,0.00013469,2]
[426824007,1782910232000,-153.0,0.00013454,2]
[426824005,1782910232000,-151.0,0.00013454,2]
[426824004,1782910232000,-152.0,0.00013454,2]
[426824002,1782910232000,-152.0,0.00013454,2]
[426823999,1782910232000,-128.80060407,0.000134,2]
[426824001,1782910232000,-150.0,0.00013451,2]
[426824000,1782910232000,-553.74673892,0.000134,2]
[426824003,1782910232000,-151.0,0.00013454,2]
[426824057,1782910238000,-45401.83,0.00013699,2]
[426824063,1782910238000,-153.0,0.000139,2]
[426824051,1782910238000,-223.28938573,0.00013564,2]
[426824054,1782910238000,-904.0,0.00013619,2]
[426824055,1782910238000,-917.0,0.00013619,2]
[426824053,1782910238000,-886.0,0.00013581,2]
[426824056,1782910238000,-906.0,0.00013696,2]
[426824075,1782910238000,-151.0,0.000139,2]
[426824058,1782910238000,-200.0,0.00013699,2]
[426824061,1782910238000,-580.50224959,0.00013899,2]
[426824064,1782910238000,-152.0,0.000139,2]
[426824076,1782910238000,-150.0,0.000139,2]
[426824062,1782910238000,-400.0,0.000139,5]
[426824066,1782910238000,-151.0,0.000139,2]
[426824073,1782910238000,-892.0,0.000139,2]
[426824059,1782910238000,-497.02,0.00013859,2]
[426824052,1782910238000,-343.22799609,0.00013564,2]
[426824050,1782910238000,-667.71061427,0.00013564,2]
[426824044,1782910238000,-151.0,0.00013554,2]
[426824065,1782910238000,-151.0,0.000139,2]
[426824034,1782910238000,-1007.13804939,0.00013469,2]
[426824035,1782910238000,-384.35259072,0.00013537,2]
[426824037,1782910238000,-152.0,0.00013554,2]
[426824039,1782910238000,-151.0,0.00013554,2]
[426824036,1782910238000,-112.66740928,0.00013537,2]
[426824040,1782910238000,-151.0,0.00013554,2]
[426824038,1782910238000,-151.0,0.00013554,2]
[426824042,1782910238000,-151.0,0.00013554,2]
[426824041,1782910238000,-151.0,0.00013554,2]
[426824043,1782910238000,-151.0,0.00013554,2]
[426824046,1782910238000,-153.0,0.00013554,2]
[426824045,1782910238000,-152.0,0.00013554,2]
[426824048,1782910238000,-152.0,0.00013554,2]
[426824047,1782910238000,-151.0,0.00013554,2]
[426824049,1782910238000,-151.0,0.00013554,2]
[426824068,1782910238000,-151.0,0.000139,2]
[426824060,1782910238000,-150.0,0.00013899,2]
[426824067,1782910238000,-152.0,0.000139,2]
[426824092,1782910238000,-911.0,0.000139,2]
[426824100,1782910238000,-892.0,0.000139,2]
[426824101,1782910238000,-151.0,0.000139,2]
[426824091,1782910238000,-889.0,0.000139,2]
[426824098,1782910238000,-890.0,0.000139,2]
[426824099,1782910238000,-151.0,0.000139,2]
[426824096,1782910238000,-892.0,0.000139,2]
[426824093,1782910238000,-152.0,0.000139,2]
[426824094,1782910238000,-150.0,0.000139,2]
[426824095,1782910238000,-882.0,0.000139,2]
[426824104,1782910238000,-9267.46806467,0.0001411,2]
[426824103,1782910238000,-821.89674209,0.00013969,2]
[426824102,1782910238000,-907.0,0.000139,2]
[426824105,1782910238000,-497.02,0.00014181,2]
[426824106,1782910238000,-9267.46806466,0.00014198,2]
[426824097,1782910238000,-150.0,0.000139,2]
[426824089,1782910238000,-892.0,0.000139,2]
[426824069,1782910238000,-911.0,0.000139,2]
[426824086,1782910238000,-895.0,0.000139,2]
[426824070,1782910238000,-898.0,0.000139,2]
[426824071,1782910238000,-150.0,0.000139,2]
[426824072,1782910238000,-152.0,0.000139,2]
[426824078,1782910238000,-888.0,0.000139,2]
[426824077,1782910238000,-884.0,0.000139,2]
[426824087,1782910238000,-901.0,0.000139,2]
[426824088,1782910238000,-153.0,0.000139,2]
[426824074,1782910238000,-887.0,0.000139,2]
[426824080,1782910238000,-150.0,0.000139,2]
[426824107,1782910238000,-500.0,0.00014203,2]
[426824079,1782910238000,-907.0,0.000139,2]
[426824082,1782910238000,-910.0,0.000139,2]
[426824090,1782910238000,-152.0,0.000139,2]
[426824085,1782910238000,-151.0,0.000139,2]
[426824081,1782910238000,-153.0,0.000139,2]
[426824084,1782910238000,-152.0,0.000139,2]
[426824083,1782910238000,-883.0,0.000139,2]
[426824146,1782910239000,-500.0,0.00014404,2]
[426824131,1782910239000,-9267.46806466,0.00014373,2]
[426824139,1782910239000,-500.0,0.00014404,2]
[426824147,1782910239000,-500.0,0.00014404,2]
[426824148,1782910239000,-500.0,0.00014404,2]
[426824143,1782910239000,-500.0,0.00014404,2]
[426824145,1782910239000,-500.0,0.00014404,2]
[426824144,1782910239000,-496.14,0.00014404,2]